Cogmind - Beta 9.5 *** ADVENTURER MODE // 2020.04.12 @ 21:34:42 Player: WingedOwl Result: Destroyed by Executioner with Helical Railgun Performance ------------- Evolutions (5) 2500 Regions Visited (11) 2200 Robots Destroyed (86) 430 Value Destroyed (3448) 3448 Prototype IDs (28) 560 Alien Tech Used (0) 0 Bonus (2814) 2814 TOTAL SCORE: 11952 Bonus ------- Follower Combat Kills 308 Aligned with FarCom 300 MAIN.C Attacked Warlord 500 Warlord Defense Kill 2190 Friendly Fire -484 Cogmind --------- Core Integrity 0/1000 Matter 87/300 Energy 538/550 System Corruption 3% Temperature Cool (8) Movement Treading (190) Ox1 Location -5/Warlord Parts ------- > --- POWER (2) -------- Reinforced Fission Core Particle Reactor > --- PROPULSION (4) --- Armored Medium Treads Armored Medium Treads Armored Medium Treads Armored Medium Treads > --- UTILITY (8) ------ Improved Cooling System Advanced Cooling System Advanced Terrain Scan Processor Improved Target Analyzer Hardened Heavy Armor Plating Hardened Heavy Armor Plating > --- WEAPON (3) ------- Heavy Autocannon > --- INVENTORY (4) ---- Reinforced Fission Core 0b10 Decoder Chip [Generic] Heavy Autocannon Peak State ------------ > --- POWER ------------ Reinforced Fission Core Particle Reactor > --- PROPULSION ------- Armored Medium Treads Armored Medium Treads Heavy Treads > --- UTILITY ---------- Improved Cooling System Advanced Cooling System Advanced Terrain Scan Processor Improved Target Analyzer Hardened Heavy Armor Plating Hardened Heavy Armor Plating > --- WEAPON ----------- Vortex Driver Heavy Autocannon > --- INVENTORY -------- Reinforced Fission Core 0b10 Decoder Chip [Generic] Heavy Autocannon [Rating: 100] Favorites ----------- Power Light Angular Momentum Engine Engine Light Angular Momentum Engine Power Core Micro Fission Core Reactor Particle Reactor Propulsion Titanium Leg Treads Armored Medium Treads Leg Titanium Leg Utility Large Storage Unit Device Improved Terrain Scanner Storage Large Storage Unit Processor Advanced Terrain Scan Processor Hackware Hacking Suite Protection Hardened Heavy Armor Plating Weapon Heavy Flak Cannon Energy Gun Shock Rifle Energy Cannon Vortex Driver Ballistic Gun Assault Rifle Ballistic Cannon Heavy Flak Cannon Launcher Rocket Launcher Special Weapon Field Lobotomy Kit Build | -11 -10 -10 -10 -9 -8 -7 -6 -5 -5 -5 -5 ------- Run | Scr Mat Min Exi Min Mat Fac Fac Fac Upp Upp War Slots Evolved 10 | . . . . . 4 2 2 2 . . . Power 1 | . . . . . . 1 . . . . . Propulsion 2 | . . . . . 1 . . 1 . . . Utility 6 | . . . . . 3 1 2 . . . . Weapon 1 | . . . . . . . . 1 . . . Parts Attached 83 | 7 1 . 1 2 19 5 6 9 1 10 22 Power 11 | 1 . . . . 1 . . 3 1 1 4 Engine 5 | 1 . . . . 1 . . 2 1 . . Core 4 | . . . . . . . . 1 . 1 2 Reactor 2 | . . . . . . . . . . . 2 Propulsion 12 | 2 . . . . 3 . . 1 . 1 5 Treads 5 | . . . . . . . . . . . 5 Leg 7 | 2 . . . . 3 . . 1 . 1 . Wheel . | . . . . . . . . . . . . Hover . | . . . . . . . . . . . . Flight . | . . . . . . . . . . . . Utility 24 | 2 . . . . 4 4 4 1 . 3 6 Device 13 | 1 . . . . 2 1 4 1 . 2 2 Storage 1 | . . . . . 1 . . . . . . Processor 3 | 1 . . . . . 1 . . . . 1 Hackware 1 | . . . . . . 1 . . . . . Protection 6 | . . . . . 1 1 . . . 1 3 Artifact . | . . . . . . . . . . . . Weapon 36 | 2 1 . 1 2 11 1 2 4 . 5 7 Energy Gun 8 | 1 . . . . 4 1 . . . 2 . Energy Cannon 5 | . . . . . . . . . . 1 4 Ballistic Gun 5 | 1 . . . 1 . . . . . 2 1 Ballistic Cannon 3 | . . . . . . . . 2 . . 1 Launcher 8 | . 1 . . 1 3 . . 2 . . 1 Special Weapon 7 | . . . 1 . 4 . 2 . . . . Impact Weapon . | . . . . . . . . . . . . Slashing Weapon . | . . . . . . . . . . . . Piercing Weapon . | . . . . . . . . . . . . Special Melee Weapon . | . . . . . . . . . . . . Unidentified Prototypes 4 | . . . . . . . . . . . 4 Parts Lost 27 | . . . . . . . . . 3 20 4 Power 4 | . . . . . . . . . 1 2 1 Propulsion 5 | . . . . . . . . . 1 4 . Utility 9 | . . . . . . . . . . 8 1 Weapon 9 | . . . . . . . . . 1 6 2 Highest Loss Streak 18 | . . . . . . . . . 2 18 2 Average Slot Usage (%) 83 | . 100 100 100 100 95 99 88 99 95 62 28 Engine 8 | . 14 14 14 14 9 14 13 10 4 3 . Core 1 | . . . . . . . . . 5 3 . Leg 19 | . 28 28 28 28 24 23 20 23 19 10 . Device 18 | . 14 14 14 14 25 23 23 29 29 19 2 Storage 3 | . . . . . 9 7 6 5 5 4 . Processor 8 | . 14 14 14 14 9 7 6 5 5 5 6 Hackware 1 | . . . . . . 4 6 5 5 3 . Energy Gun 2 | . 9 . . . 6 13 8 4 . . . Ballistic Gun 3 | . 14 14 2 14 5 . . . . 1 . Ballistic Cannon 2 | . . . . . . . . 5 11 5 . Launcher 5 | . 4 14 14 14 2 1 . . 4 . 2 Special Weapon 2 | . . . 11 . 2 . 2 4 . . . Naked Turns . | . . . . . . . . . . . . Heaviest Build 134 | 10 11 11 17 12 37 39 42 56 56 57 134 Greatest Support 124 | 20 20 20 20 20 49 49 49 69 69 71 124 Greatest Overweight (x) 16 | 2 . . . . 1 . . . 1 16 11 Average Overweight (x) . | . . . . . . . . . . . 3 Largest Inventory Capacity 10 | 4 4 4 4 4 10 10 10 10 10 10 4 Average Capacity 7 | 4 4 4 4 4 10 10 10 10 10 9 4 Most Carried 10 | 4 4 4 4 4 10 10 10 10 10 9 4 Average Carried 6 | 2 3 3 3 4 8 9 9 9 9 6 3 Final Capacity 10 | 4 4 4 4 4 10 10 10 10 10 4 4 Final Carried 10 | 4 4 4 4 4 10 10 10 10 9 4 4 Class Distribution -------------------- 33% | Mutant 20% | Hacker-Mutant 12% | Scavenger-Skirmisher 9% | Scavenger-Mutant 8% | Commander-Gunner 6% | Skirmisher 6% | Hacker-Skirmisher Dominant Class ---------------- Mutant | -10/Materials Mutant | -10/Mines Mutant | -10/Exiles Skirmisher | -9/Mines Scavenger-Skirmisher | -8/Materials Scavenger-Skirmisher | -7/Factory Hacker-Mutant | -6/Factory Hacker-Mutant | -5/Factory Hacker-Mutant | -5/Upper Caves Hacker-Mutant | -5/Upper Caves Commander-Gunner | -5/Warlord Resources | -11 -10 -10 -10 -9 -8 -7 -6 -5 -5 -5 -5 ----------- Run | Scr Mat Min Exi Min Mat Fac Fac Fac Upp Upp War Matter Collected 2584 | 327 . 143 . 48 249 154 . 330 290 348 695 Remotely . | . . . . . . . . . . . . Salvage Created 2886 | 222 63 98 . 20 583 225 . 291 343 532 509 Parts 122 | 26 6 4 . 2 26 13 . 8 8 14 15 Haulers Intercepted 2 | . . . . . 2 . . . . . . Recyclers Shooed 3 | . . . . . 1 . . 2 . . . Parts Field Recycled . | . . . . . . . . . . . . Retrieved Matter . | . . . . . . . . . . . . Parts Self-Destructed 144 | . . . . . . . . . 8 20 116 Prevented 14 | . . . . . . . . . . 1 13 Kills | -11 -10 -10 -10 -9 -8 -7 -6 -5 -5 -5 -5 ------- Run | Scr Mat Min Exi Min Mat Fac Fac Fac Upp Upp War Combat Hostiles Destroyed 61 | . 4 4 . . 10 2 . 4 12 10 15 Guns 11 | . 1 . . . 4 1 . . . 5 . Cannons 29 | . . . . . . . . 4 9 5 11 AOE 19 | . 3 4 . . 6 . . . 3 . 3 Classes Destroyed 17 | 3 2 . . . 4 1 . 1 1 1 4 Worker 5 | 2 . . . 1 . 1 . 1 . . . Builder 3 | . . . . . 2 1 . . . . . Tunneler 7 | 7 . . . . . . . . . . . Hauler 2 | . . . . . 2 . . . . . . Recycler 4 | 1 . . . . 1 1 . 1 . . . Mechanic 1 | . . . . . . . . . . . 1 Watcher 2 | . . . . . 2 . . . . . . Swarmer 9 | . 3 . . . . . . . 6 . . Grunt 26 | . 1 4 . . 8 . . 2 3 4 4 Brawler 3 | . . . . . . . . . . 1 2 Duelist 6 | . . . . . . . . . 1 4 1 Sentry 5 | . . . . . 2 . . 1 2 . . Hunter 2 | . . . . . . 2 . . . . . Programmer 6 | . . . . . . . . 1 . 1 4 Behemoth 2 | . . . . . . . . . . . 2 Striker 1 | . . . . . . . . . . . 1 Executioner 1 | . . . . . . . . . . . 1 Savage 1 | . . . . . . . . . . . 1 Best Kill Streak 10 | 4 3 2 . 1 6 2 . 3 7 10 4 Combat Bots Only 10 | . 3 2 . . 3 2 . 3 7 10 4 Max Kills in Single Turn 4 | 1 2 2 . 1 3 1 . 2 3 1 4 Gunslinging . | . . . . . . . . . . . . Exploded 3 | . 2 2 . . 2 . . . 3 . 3 Melee . | . . . . . . . . . . . . Uniques/NPCs Destroyed . | . . . . . . . . . . . . Combat | -11 -10 -10 -10 -9 -8 -7 -6 -5 -5 -5 -5 -------- Run | Scr Mat Min Exi Min Mat Fac Fac Fac Upp Upp War Damage Taken 5608 | . 52 41 . . 150 167 . 149 439 2001 2609 Core 1076 | . 12 9 . . 14 37 . . 79 575 350 Absorbed by Shields . | . . . . . . . . . . . . Core Remaining (%) 96 | 100 . . . 91 97 94 100 . . . . Volleys Fired 215 | 19 5 11 . 1 38 15 2 14 21 41 48 Largest 3 | 2 2 2 . 1 2 2 1 3 2 3 2 Hottest 190 | 70 70 50 . 20 100 100 100 139 106 187 190 Shots Fired 372 | 38 7 14 . 1 61 28 2 25 39 71 86 Gun 156 | 38 5 3 . 1 47 28 . . . 32 2 Cannon 175 | . . . . . . . . 18 36 39 82 Launcher 32 | . 2 11 . . 10 . . 4 3 . 2 Special 9 | . . . . . 4 . 2 3 . . . Kinetic 201 | 19 3 3 . 1 21 . . 18 36 59 41 Thermal 35 | 19 2 . . . 10 . 2 . . 2 . Explosive 30 | . 2 11 . . 10 . . 4 3 . . Electromagnetic 56 | . . . . . 18 28 . . . 10 . Entropic 45 | . . . . . . . . . . . 45 Robot Hit Streak 26 | 10 4 9 . 10 17 12 . 18 26 19 25 Robot Miss Streak 7 | 1 1 . . . 2 1 . 6 7 4 2 Penetration Max 1 | . . . . . . . . . . . 1 Secondary Targets 1 | . . . . . . . . . . 1 . Max Gunslinging Chain 1 | . . . . . . . . . . 1 . Shots Hit Robots 301 | 28 5 5 . 1 46 22 . 20 34 66 74 Core Hits 205 | 11 5 9 . 1 32 8 . 29 46 46 18 Critical Hits 3 | . . . . . . . . . . . 3 Critical Kills . | . . . . . . . . . . . . Critical Parts Destroyed 3 | . . . . . . . . . . . 3 Melee Attacks . | . . . . . . . . . . . . Impact . | . . . . . . . . . . . . Slashing . | . . . . . . . . . . . . Piercing . | . . . . . . . . . . . . Sneak Attacks . | . . . . . . . . . . . . Combat Hostiles . | . . . . . . . . . . . . Follow-up Attacks . | . . . . . . . . . . . . Damage Inflicted 12820 | 381 184 335 . 14 1758 449 . 811 1060 1582 6246 Guns 2228 | 381 45 25 . 14 678 394 . . . 636 55 Cannons 8084 | . . . . . . . . 650 823 946 5665 Explosions 2508 | . 139 310 . . 1080 55 . 161 237 . 526 Melee . | . . . . . . . . . . . . Ramming . | . . . . . . . . . . . . Kinetic 6074 | 218 33 25 . 14 245 . . 650 823 1374 2692 Thermal 498 | 163 12 . . . 225 55 . . . 43 . Explosive 1831 | . 139 310 . . 984 . . 161 237 . . Electromagnetic 863 | . . . . . 304 394 . . . 165 . Impact . | . . . . . . . . . . . . Slashing . | . . . . . . . . . . . . Piercing . | . . . . . . . . . . . . Entropic 3554 | . . . . . . . . . . . 3554 Highest Corruption 3 | . . . . . . . . . . . 3 Average Corruption 1 | . . . . . . . . . . . 1 Corruption Purged . | . . . . . . . . . . . . Effects 2 | . . . . . . . . . . . 2 Message Errors 1 | . . . . . . . . . . . 1 Targeting Errors 1 | . . . . . . . . . . . 1 Overload Shots . | . . . . . . . . . . . . Overflow Damage 562 | . . . . . 29 . . . 4 . 529 Projectiles 419 | . . . . . . . . . . . 419 Explosions 143 | . . . . . 29 . . . 4 . 110 Melee . | . . . . . . . . . . . . Knockbacks 49 | . . . . . . . . 6 24 6 13 Impact . | . . . . . . . . . . . . Kinetic 42 | . . . . . . . . 6 19 6 11 Secondary 7 | . . . . . . . . . 5 . 2 Self-Inflicted Damage 201 | . . . . . 16 17 . 16 19 . 133 Shots 5 | . . . . . 1 1 . 1 1 . 1 Rammed . | . . . . . . . . . . . . Targets Rammed . | . . . . . . . . . . . . Kicked . | . . . . . . . . . . . . Crushed . | . . . . . . . . . . . . Highest Temperature 138 | 27 9 6 . . 15 60 . 6 . 83 138 Average Temperature 25 | 13 6 2 . . 7 23 . 4 . 48 41 Received Heat Transfer 1296 | . . 30 . . 81 42 . 18 111 600 414 Siege Activations . | . . . . . . . . . . . . Robots Corrupted 1 | . . . . . . 1 . . . . . Combat Hostiles 1 | . . . . . . 1 . . . . . Parts Fried 4 | . . . . . 4 . . . . . . Impact Corruptions . | . . . . . . . . . . . . Robots Melted . | . . . . . . . . . . . . Combat Hostiles . | . . . . . . . . . . . . Parts Melted 2 | . . . . . 1 . . . . . 1 Heat Transferred 1064 | 481 37 . . . 372 100 . . . 74 . Parts Sabotaged . | . . . . . . . . . . . . Parts Stolen . | . . . . . . . . . . . . Parts Stripped . | . . . . . . . . . . . . Power Chain Reactions 3 | . . . . . 2 1 . . . . . Missiles Intercepted . | . . . . . . . . . . . . Alert | -11 -10 -10 -10 -9 -8 -7 -6 -5 -5 -5 -5 ------- Run | Scr Mat Min Exi Min Mat Fac Fac Fac Upp Upp War Peak Influence 289 | 50 187 188 . 5 203 96 62 289 . . . Average Influence 55 | 23 111 136 . . 72 53 44 43 . . . Maximum Alert Level 1 | . . . . . 1 . . 1 . . . Low Security (%) 97 | 100 100 100 . 100 98 100 100 86 . . . Level 1 2 | . . . . . 1 . . 13 . . . Level 2 . | . . . . . . . . . . . . Level 3 . | . . . . . . . . . . . . Level 4 . | . . . . . . . . . . . . Level 5 . | . . . . . . . . . . . . High Security . | . . . . . . . . . . . . Max Security . | . . . . . . . . . . . . Squads Dispatched 11 | . 2 . . . 4 1 . 3 . 1 . Investigation 5 | . 2 . . . 2 1 . . . . . Extermination 1 | . . . . . . . . 1 . . . Reinforcement 4 | . . . . . 2 . . 2 . . . Assault 1 | . . . . . . . . . . 1 . Garrison . | . . . . . . . . . . . . Intercept . | . . . . . . . . . . . . Construction Impeded . | . . . . . . . . . . . . Haulers Reinforced . | . . . . . . . . . . . . Stealth | -11 -10 -10 -10 -9 -8 -7 -6 -5 -5 -5 -5 --------- Run | Scr Mat Min Exi Min Mat Fac Fac Fac Upp Upp War Distress Signals 2 | . . . . . 1 . . 1 . . . Communications Jammed . | . . . . . . . . . . . . Distress Signals . | . . . . . . . . . . . . Times Spotted 126 | . 7 4 . . 19 3 . 11 19 31 32 Peak Tracking Total 11 | . 5 2 . . 3 5 . 5 7 10 11 Tactical Retreats 17 | . . . . . 3 1 . 1 3 5 4 Traps | -11 -10 -10 -10 -9 -8 -7 -6 -5 -5 -5 -5 ------- Run | Scr Mat Min Exi Min Mat Fac Fac Fac Upp Upp War Traps Triggered 3 | . 1 . . . 1 1 . . . . . Indirectly . | . . . . . . . . . . . . Trap Hack Attempts . | . . . . . . . . . . . . Triggered . | . . . . . . . . . . . . Disarmed . | . . . . . . . . . . . . Reprogrammed . | . . . . . . . . . . . . Reused . | . . . . . . . . . . . . Traps Extracted . | . . . . . . . . . . . . Installed . | . . . . . . . . . . . . Triggered 12 | . . . . . . . . . . 1 11 Machines | -11 -10 -10 -10 -9 -8 -7 -6 -5 -5 -5 -5 ---------- Run | Scr Mat Min Exi Min Mat Fac Fac Fac Upp Upp War Machines Disabled 14 | . 1 3 . . 4 . . 3 . 1 2 Max in Single Turn 2 | . 1 2 . . 2 . . 2 . . 1 Garrison Access 1 | . . . . . . 1 . . . . . Machines Sabotaged . | . . . . . . . . . . . . Garrisons Compromised . | . . . . . . . . . . . . Overloaded Fab Kills . | . . . . . . . . . . . . Fab Network Shutdowns . | . . . . . . . . . . . . Hacking | -11 -10 -10 -10 -9 -8 -7 -6 -5 -5 -5 -5 --------- Run | Scr Mat Min Exi Min Mat Fac Fac Fac Upp Upp War Machines Accessed 21 | . 3 . 4 . 3 2 3 4 . . 2 Terminals 11 | . 2 . . . 3 . 3 3 . . . Fabricators . | . . . . . . . . . . . . Repair Stations 1 | . . . . . . 1 . . . . . Recycling Units 1 | . 1 . . . . . . . . . . Scanalyzers 1 | . . . . . . . . 1 . . . Garrison Access 1 | . . . . . . 1 . . . . . Total Hacks 78 | . 9 . 26 . 10 4 8 18 . . 3 Successful 63 | . 5 . 26 . 7 2 6 14 . . 3 Failed 15 | . 4 . . . 3 2 2 4 . . . Catastrophic 2 | . 1 . . . . . . 1 . . . Database Lockouts . | . . . . . . . . . . . . Manual 34 | . 8 . 1 . 9 . 6 10 . . . Terminals 34 | . 6 . . . 10 . 8 10 . . . Fabricators . | . . . . . . . . . . . . Repair Stations 2 | . . . . . . 2 . . . . . Recycling Units 3 | . 3 . . . . . . . . . . Scanalyzers 8 | . . . . . . . . 8 . . . Garrison Access 2 | . . . . . . 2 . . . . . Terminal Hacks 40 | . 1 . 26 . 4 . 4 2 . . 3 Record 30 | . . . 25 . . . 2 1 . . 2 Prototype ID Bank 1 | . . . . . . . 1 . . . . Open Door 1 | . . . . . . . . . . . 1 Alert Level 1 | . . . . . . . 1 . . . . Unreport Threat 1 | . . . . . 1 . . . . . . Recall Investigation 2 | . 1 . . . 1 . . . . . . Recall Reinforcements 2 | . . . . . 1 . . 1 . . . Zone Layout 1 | . . . . . 1 . . . . . . EX-Prototype ID Bank 1 | . . . 1 . . . . . . . . Fabricator Hacks . | . . . . . . . . . . . . Repair Station Hacks 1 | . . . . . . 1 . . . . . Refit 1 | . . . . . . 1 . . . . . Recycling Unit Hacks 1 | . 1 . . . . . . . . . . Report Inventory 1 | . 1 . . . . . . . . . . Scanalyzer 8 | . . . . . . . . 8 . . . Insert Component 4 | . . . . . . . . 4 . . . Analyze 4 | . . . . . . . . 4 . . . Garrison Access Hacks 1 | . . . . . . 1 . . . . . Seal Access 1 | . . . . . . 1 . . . . . Unauthorized Hacks 27 | . 6 . . . 8 . 5 8 . . . Terminals 10 | . 1 . . . 3 . 2 4 . . . Track 1 | . . . . . . . . 1 . . . Assimilate 3 | . . . . . 2 . 1 . . . . Botnet 5 | . 1 . . . 1 . 1 2 . . . Operators 1 | . . . . . . . . 1 . . . Fabricators . | . . . . . . . . . . . . Repair Stations . | . . . . . . . . . . . . Recycling Units 2 | . 2 . . . . . . . . . . Mask 1 | . 1 . . . . . . . . . . Tunnel 1 | . 1 . . . . . . . . . . Scanalyzers . | . . . . . . . . . . . . Garrison Access . | . . . . . . . . . . . . Data Cores Recovered . | . . . . . . . . . . . . Used . | . . . . . . . . . . . . Hacking Detections 12 | . 2 . . . 2 1 3 4 . . . Full Trace Events 1 | . . . . . 1 . . . . . . Feedback Events . | . . . . . . . . . . . . Feedback Blocked . | . . . . . . . . . . . . Robot Schematics Acquired . | . . . . . . . . . . . . Robots Built . | . . . . . . . . . . . . Matter . | . . . . . . . . . . . . Time . | . . . . . . . . . . . . Total Robot Build Rating . | . . . . . . . . . . . . Part Schematics Acquired 4 | . . . . . . . . 4 . . . Parts Built . | . . . . . . . . . . . . Matter . | . . . . . . . . . . . . Time . | . . . . . . . . . . . . Total Part Build Rating . | . . . . . . . . . . . . Parts Repaired . | . . . . . . . . . . . . Time . | . . . . . . . . . . . . Parts Recycled . | . . . . . . . . . . . . Recycled Matter . | . . . . . . . . . . . . Retrieved Matter . | . . . . . . . . . . . . Retrieved Components . | . . . . . . . . . . . . Parts Scanalyzed 4 | . . . . . . . . 4 . . . Part Schematics Acquired 4 | . . . . . . . . 4 . . . Parts Damaged . | . . . . . . . . . . . . Bothacking | -11 -10 -10 -10 -9 -8 -7 -6 -5 -5 -5 -5 ------------ Run | Scr Mat Min Exi Min Mat Fac Fac Fac Upp Upp War Used RIF Installer . | . . . . . . . . . . . . Robots Hacked . | . . . . . . . . . . . . Non-combat . | . . . . . . . . . . . . Combat . | . . . . . . . . . . . . Robot Hacks Applied . | . . . . . . . . . . . . Relay Couplers Released . | . . . . . . . . . . . . Robots Rewired 9 | . . . . . . 1 . . 2 2 4 Allies Hacked 1 | . . . . . . . . . . . 1 Hacks Repelled . | . . . . . . . . . . . . Allies | -11 -10 -10 -10 -9 -8 -7 -6 -5 -5 -5 -5 -------- Run | Scr Mat Min Exi Min Mat Fac Fac Fac Upp Upp War Total Allies 16 | . . . . 2 2 1 . 3 2 2 4 Largest Group 4 | . . . . 2 3 1 . 1 2 2 4 Highest-Rated Group 193 | . . . . 40 50 21 . 54 78 78 193 Highest-Rated Ally 60 | . . . . 31 31 21 . 54 49 49 60 Total Orders 7 | . . . . . 3 . . 3 . . 1 STAY 1 | . . . . . 1 . . . . . . GOTO 3 | . . . . . 1 . . 1 . . 1 FOLLOW 2 | . . . . . 1 . . 1 . . . EXPLORE 1 | . . . . . . . . 1 . . . Ally Attacks 58 | . . . . . 14 2 . 9 . 25 8 Total Damage 1394 | . . . . . 206 46 . 293 . 749 100 Kills 7 | . . . . . . 1 . 1 . 4 1 Allies Corrupted 2 | . . . . . . . . 1 . . 1 Allies Melted . | . . . . . . . . . . . . Field Lobotomies 5 | . . . . . 2 . . 3 . . . Intel | -11 -10 -10 -10 -9 -8 -7 -6 -5 -5 -5 -5 ------- Run | Scr Mat Min Exi Min Mat Fac Fac Fac Upp Upp War Robot Analysis Total . | . . . . . . . . . . . . Derelict Logs Recovered 6 | . . 1 . 2 . . . . 1 2 . Drone Launches 3 | . . . . . . . . 3 . . . Drone Recoveries . | . . . . . . . . . . . . Exploration | -11 -10 -10 -10 -9 -8 -7 -6 -5 -5 -5 -5 ------------- Run | Scr Mat Min Exi Min Mat Fac Fac Fac Upp Upp War Turns Passed 6780 | 261 89 386 903 517 800 358 433 646 830 492 1065 Spaces Moved 3668 | 158 62 299 469 425 338 234 309 277 515 269 313 Core 369 | 10 . . . . . . . . . 112 247 Treads 66 | . . . . . . . . . . . 66 Legs 3233 | 148 62 299 469 425 338 234 309 277 515 157 . Wheels . | . . . . . . . . . . . . Hover . | . . . . . . . . . . . . Flight . | . . . . . . . . . . . . Fastest Speed 50 | 50 120 120 120 120 120 126 126 130 130 50 50 Average Speed 138 | 120 120 120 120 120 134 126 126 130 146 130 250 Slowest Speed 850 | 150 120 120 120 120 155 126 126 130 163 850 600 Overloaded Moves . | . . . . . . . . . . . . Propulsion Burnouts . | . . . . . . . . . . . . Robots Hopped . | . . . . . . . . . . . . Cave-ins Triggered . | . . . . . . . . . . . . Exploration Rate (%) 37 | 7 21 44 81 75 39 8 8 15 73 44 40 Regions Visited 11 Branch Regions 6 Pre-discovered Areas 2 | . 1 . . 1 . . . . . . . Known Exits Taken 1 | . . . . . 1 . . . . . . Unknown Exits Taken 10 | 1 1 1 1 1 . 1 1 1 1 1 . Scrap Searched 5 | . . 1 . 1 . . . . 2 1 . Spaces Dug 37 | . . 20 . . 2 . . 8 7 . . Terrain Destroyed 330 | . 4 69 . . 67 1 . 59 18 . 112 Melee . | . . . . . . . . . . . . Projectile 13 | . . . . . 2 . . . . . 11 AOE 317 | . 4 69 . . 65 1 . 59 18 . 101 Actions | -11 -10 -10 -10 -9 -8 -7 -6 -5 -5 -5 -5 --------- Run | Scr Mat Min Exi Min Mat Fac Fac Fac Upp Upp War Total 4967 | 187 69 315 809 430 609 267 346 536 552 345 502 Wait 802 | . . . 337 2 203 . 26 226 6 . 2 Move 3657 | 157 61 298 468 424 337 233 308 276 514 268 313 Hop . | . . . . . . . . . . . . Pick Up 24 | 4 1 3 1 . 6 . 1 3 2 . 3 Fast Attach 45 | 7 . . 1 1 7 1 3 3 . 4 18 Attach 16 | . . . . . 1 1 1 2 1 6 4 Detach 7 | . . . . . 2 . . 2 . 1 2 Swap 22 | . 1 . . 1 11 3 2 4 . . . Drop 28 | . 1 3 2 1 4 1 3 5 2 3 3 Fire 215 | 19 5 11 . 1 38 15 2 14 21 41 48 Melee . | . . . . . . . . . . . . Ram . | . . . . . . . . . . . . Kick . | . . . . . . . . . . . . Crush . | . . . . . . . . . . . . Escape Stasis . | . . . . . . . . . . . . Rewire 150 | . . . . . . 13 . . 6 22 109 Trap . | . . . . . . . . . . . . Miscellaneous 1 | . . . . . . . . 1 . . . Route ------- -11/Scrapyard -10/Materials -10/Mines (discovered 3 exits: *Mat x2 / *Exi) -10/Exiles -9/Mines -8/Materials -7/Factory -6/Factory -5/Factory -5/Upper Caves -5/Upper Caves -5/Warlord History --------- Turn | Location | Event 8 | -11/Scrapyard | Discovered new exit (range 16) 262 | -11/Scrapyard | Entered Materials 307 | -10/Materials | Build established: Mutant 316 | -10/Materials | Discovered new exit (range 16) 351 | -10/Materials | Entered Mines 368 | -10/Mines | Discovered new exit (range 11) 721 | -10/Mines | Identified exit to Materials 731 | -10/Mines | Deemed a non-threat by the Exiles lab entrance 732 | -10/Mines | Discovered new exit (range 5) 737 | -10/Mines | Entered Exiles 766 | -10/Exiles | Met 8R-AWN 787 | -10/Exiles | Met EX-HEX 819 | -10/Exiles | Met EX-BIN 833 | -10/Exiles | Aligned with FarCom system 835 | -10/Exiles | Given EX-Vault access code 895 | -10/Exiles | Opened EX-Vault 904 | -10/Exiles | Found Field Lobotomy Kit 933 | -10/Exiles | Warned to stay clear of 0b10 Research branches 1320 | -10/Exiles | Met EX-DEC 1363 | -10/Exiles | Visited The Gauntlet 1624 | -10/Exiles | Discovered new exit (range 15) 1640 | -10/Exiles | Left Exiles lab with Field Lobotomy Kit 1640 | -10/Exiles | Entered Mines 1681 | -9/Mines | Received a Rocket Launcher from a helpful Derelict 1798 | -9/Mines | Learned location of Zion (-7) 1933 | -9/Mines | Build established: Skirmisher 2074 | -9/Mines | Discovered new exit (range 10) 2093 | -9/Mines | Learned location of 1 exit from Materials 2157 | -9/Mines | Entered Materials 2157 | -8/Materials | Accompanied by 2 allies 2157 | -8/Materials | Evolved 4 slots: Propulsion x1, Utility x3 2158 | -8/Materials | Identified exit to Factory 2162 | -8/Materials | Led the pair of lost Derelicts to an unsafe place 2317 | -8/Materials | Assimilated O-16 Technician with FLK Orb 2854 | -8/Materials | Assimilated O-16 Technician with FLK Orb 2957 | -8/Materials | Entered Factory 2957 | -7/Factory | Evolved 2 slots: Power x1, Utility x1 3009 | -7/Factory | Rewired Cogmind 3288 | -7/Factory | Discovered new exit (range 3) 3315 | -7/Factory | Entered another Factory area 3315 | -6/Factory | Evolved 2 slots: Utility x2 3512 | -6/Factory | Discovered new exit (range 20) 3748 | -6/Factory | Entered another Factory area 3748 | -5/Factory | Evolved 2 slots: Propulsion x1, Weapon x1 3981 | -5/Factory | Assimilated O-24 Administrator with FLK Orb 4116 | -5/Factory | Discovered new exit (range 19) 4267 | -5/Factory | Build established: Hacker-Mutant 4287 | -5/Factory | Assimilated Y-64 Sentinel with FLK Orb 4291 | -5/Factory | Assimilated P-70 Sage with FLK Orb 4394 | -5/Factory | Entered Upper Caves 4487 | -5/Upper Caves | Attracted the attention of an 0b10 checkpoint 4539 | -5/Upper Caves | Spotted B-75 Beast 4670 | -5/Upper Caves | Build established: Scavenger-Mutant 4816 | -5/Upper Caves | Learned Factory trap positions 4973 | -5/Upper Caves | Build established: Hacker-Mutant 5131 | -5/Upper Caves | Attracted the attention of an 0b10 outpost 5170 | -5/Upper Caves | Rewired Cogmind 5172 | -5/Upper Caves | Rewired Cogmind 5184 | -5/Upper Caves | Destroyed 7 combat bots 5206 | -5/Upper Caves | Discovered new exit (range 11) 5224 | -5/Upper Caves | Entered another Upper Caves area 5224 | -5/Upper Caves | Accompanied by 2 allies 5445 | -5/Upper Caves | Attracted the attention of an 0b10 outpost 5560 | -5/Upper Caves | Lost 18 parts (2p4n6u6w) 5573 | -5/Upper Caves | Destroyed 10 combat bots 5668 | -5/Upper Caves | Rewired Cogmind 5669 | -5/Upper Caves | Core integrity fell below 50% 5672 | -5/Upper Caves | Rewired Cogmind 5690 | -5/Upper Caves | Learned Factory machine intel 5700 | -5/Upper Caves | Attracted the attention of an 0b10 checkpoint 5704 | -5/Upper Caves | Learned Factory terminal intel 5711 | -5/Upper Caves | Discovered new exit (range 12) 5716 | -5/Upper Caves | Entered Warlord 5769 | -5/Warlord | Rewired Cogmind 5781 | -5/Warlord | Rewired Cogmind 5869 | -5/Warlord | Rewired Cogmind 5877 | -5/Warlord | Rewired Cogmind 5893 | -5/Warlord | Visited the Vortex Lab 5900 | -5/Warlord | Found Prototype Launcher 5900 | -5/Warlord | Identified Vortex Catalyst Activator 5904 | -5/Warlord | Found Prototype Energy Cannon 5904 | -5/Warlord | Identified Vortex Cannon 5912 | -5/Warlord | Warlord's base attacked by MAIN.C 5918 | -5/Warlord | Found Prototype Energy Cannon 5920 | -5/Warlord | Identified Vortex Driver 5927 | -5/Warlord | Found Vortex Driver 6207 | -5/Warlord | Build established: Commander-Gunner 6262 | -5/Warlord | Warlord forces counterattacked 6491 | -5/Warlord | Spotted Executioner 6516 | -5/Warlord | Destroyed Executioner 6582 | -5/Warlord | Spotted B-75 Beast 6584 | -5/Warlord | Found Prototype Ballistic Cannon 6584 | -5/Warlord | Identified Hvy. Autocannon 6589 | -5/Warlord | Spotted Striker 6590 | -5/Warlord | Spotted B-86 Titan 6591 | -5/Warlord | Spotted Striker 6595 | -5/Warlord | Destroyed B-75 Beast 6598 | -5/Warlord | Destroyed Striker 6601 | -5/Warlord | Core integrity fell below 20% 6652 | -5/Warlord | Destroyed B-86 Titan 6673 | -5/Warlord | Found Hvy. Autocannon 6709 | -5/Warlord | Spotted Executioner 6774 | -5/Warlord | Spotted Executioner 6781 | -5/Warlord | Destroyed by Executioner with Helical Railgun Last Messages --------------- 06751_ Destroyed Electrolaser. 06753_ L-41 Fighter knocked back. 06756_ Prototype Leg fries itself beyond repair. 06756_ Imp. Medium Armor Plating fries itself beyond repair. 06756_ L-41 Fighter knocked back. 06756_ L-41 Fighter destroyed. 06757_ CWOJ IKUZDUCHT